[Event "MCCT Chessable Masters 2022"]
[Site "Online"]
[Date "2022.05.16"]
[Round "7.8"]
[White "Mishra, Abhimanyu"]
[Black "Shankland, Sam"]
[Result "0-1"]
[ECO "C54"]
[WhiteElo "2535"]
[BlackElo "2718"]
[Annotator "TA"]
[PlyCount "114"]
[EventDate "2022.05.19"]
[EventType "tourn"]
[EventCountry "NET"]
[SourceTitle "playchess.com"]
[Source "ChessBase"]
[SourceQuality "1"]
[TimeControl "900+10"]

{[%evp 13,114,11,16,8,24,24,28,35,28,8,17,8,10,10,12,9,0,0,0,0,6,1,2,0,0,0,0,0,9,-42,-42,-31,-39,-22,-32,-82,-83,-83,-81,-77,-84,-97,-115,-114,-107,-104,-106,-106,-104,-127,-116,-123,-121,-126,-97,-121,-122,-120,-127,-111,0,0,0,-373,-404,-487,-480,-554,-514,-760,-533,-1911,-935,-871,-780,-1625,-1524,-1856,-955,-12840,-12840,-12843,-12843,-12844,-12843,-12843,-12844,-12844,-12845,-12845,-12845,-12847,-12847,-12848,-12848,-12849,-12849,-12850,-12850,-12850,-12850,-29994,-12850]} 1. e4 {[%emt 0:00:00]} e5 {[%emt 0:00:00]} 2. Nf3 {[%emt 0:00:02]} Nc6 {[%emt 0:00:01]} 3. Bc4 {[%emt 0:00:01]} Bc5 {[%emt 0:00:01]} 4. c3 {[%emt 0:00:01]} Nf6 {[%emt 0:00:02]} 5. d3 {[%emt 0:00:01]} d6 {[%emt 0:00:02]} 6. O-O {[%emt 0:00:01]} a6 {[%emt 0:00:05]} 7. a4 {[%emt 0:00:23]} h6 {[%emt 0:00:03]} 8. Re1 {[%emt 0:00:23] 8.Re1 scores better than 8.Nbd2. C54: Giuoco Piano: 4 c3 Nf6, main lines with 5 d4 and 5 d3.} Ba7 {[%emt 0:00:03]} 9. Nbd2 {[%emt 0:00:10]} Be6 $5 {[%emt 0:00:01][%mdl 4] Exploring less charted territory.} 10. Bxe6 {[%emt 0:00:54] White has an edge.} fxe6 {[%emt 0:00:02]} 11. Nf1 {[%emt 0:00:29]} a5 {[%emt 0:00:03]} 12. Be3 {[%emt 0:00:12]} Bxe3 {[%emt 0:00:03]} 13. Nxe3 {[%emt 0:00:40]} O-O {[%emt 0:00:27] [#]} 14. Qb3 $146 {[%emt 0:00:27][%csl LRb7,LRe6]} ({Predecessor:} 14. Nc4 Nd7 15. d4 Qf6 16. Re2 Qg6 17. Re3 Qf6 18. Qd2 Rf7 19. Rd1 b6 20. Qe2 {½-½ (44) Dragun,K (2590)-Swiercz,D (2656) Saint Louis 2022}) 14... Qd7 {[%emt 0:00:30]} 15. Qb5 {[%emt 0:01:06]} (15. Qxb7 $2 Rfb8 16. Qb5 Rxb5 $19) 15... b6 {[%emt 0:03:25]} 16. Rad1 {[%emt 0:01:20]} Rf7 {[%emt 0:00:16]} 17. Nf1 {[%emt 0:01:49]} Raf8 {[%emt 0:01:16]} 18. d4 {[%emt 0:00:59]} exd4 {[%emt 0:00:42]} (18... Ne8 {with more complications.} 19. N1d2 exd4 20. Nxd4 Nxd4 21. Qxd7 Ne2+) 19. Nxd4 {[%emt 0:00:27]} Nxd4 {[%emt 0:00:15]} 20. cxd4 {[%emt 0:00:23]} d5 {[%emt 0:02:34]} 21. exd5 {[%emt 0:02:03]} (21. Qxd7 $11 Nxd7 22. exd5 exd5 23. f3) 21... Qxb5 $15 {[%emt 0:00:42]} (21... Qxd5 22. Qxd5 Nxd5 23. f3 $11) (21... exd5 22. Qxd7 Nxd7 23. f3 $11) 22. axb5 {[%emt 0:00:02]} Nxd5 {[%emt 0:00:01]} 23. f3 {[%emt 0:00:55]} Re7 {[%emt 0:00:48]} 24. Ne3 {[%emt 0:01:43]} ({Better is} 24. Nd2 $15) 24... Nxe3 $1 $17 {[%emt 0:01:36] Black is more active.} 25. Rxe3 {[%emt 0:00:00][%cal Ob2b4][%mdl 4096] Endgame KRR-KRR} Rf5 {[%emt 0:00:13]} 26. Re5 {[%emt 0:01:19]} Rd7 {[%emt 0:00:30] aiming for ...Rxe5.} 27. Rxf5 {[%emt 0:01:26]} exf5 {[%emt 0:00:02] KR-KR} 28. d5 {[%emt 0:00:01]} Kf7 {[%emt 0:00:02]} 29. Kf2 {[%emt 0:00:10]} Ke7 {[%emt 0:00:01]} 30. Ke3 {[%emt 0:00:31]} Kd6 $1 {[%emt 0:00:02]} 31. Kd4 {[%emt 0:00:24] [#]} Re7 {[%emt 0:00:01] Inhibits Re1. ...Re2 is the strong threat.} 32. Rc1 {[%emt 0:00:10]} Re2 {[%emt 0:00:02][%csl LRb2,LRg2] Threatens to win with ...Rd2+.} 33. Rc6+ {[%emt 0:00:03]} Kd7 {[%emt 0:00:00]} 34. Rg6 {[%emt 0:00:11]} Rxb2 {[%emt 0:00:03]} 35. Rxg7+ {[%emt 0:00:03]} Kc8 {[%emt 0:00:01]} 36. d6 {[%emt 0:00:46]} Rd2+ {[%emt 0:00:23]} (36... cxd6 $6 37. Kd5 $15) ({Black should play} 36... Rb4+ $17 37. Kc3 cxd6) 37. Ke5 $11 {[%emt 0:00:36]} Rxd6 {[%emt 0:00:03]} 38. Kxf5 $2 {[%emt 0:00:03][%mdl 8192] Black continues to play with concentration.} (38. f4 $11 {and White stays safe.}) 38... Rd5+ $19 {[%emt 0:01:16]} 39. Ke6 {[%emt 0:00:28]} Rxb5 {[%emt 0:00:04] And now ...a4 would win.} 40. f4 {[%emt 0:00:12]} a4 {[%emt 0:00:13][%cal Ba5a4,Ba4a3,Ba3a2][%mdl 32]} 41. Rg3 {[%emt 0:00:31]} Rb3 {[%emt 0:01:37] Strongly threatening ...Rxg3.} 42. Rg8+ {[%emt 0:00:24]} Kb7 {[%emt 0:00:02] White must now prevent ...a3.} 43. Rd8 {[%emt 0:00:06]} Re3+ {[%emt 0:00:11]} 44. Kf6 {[%emt 0:00:12]} a3 {[%emt 0:00:13]} 45. g4 {[%emt 0:00:17]} b5 {[%emt 0:00:11]} 46. g5 {[%emt 0:00:08]} hxg5 {[%emt 0:00:01]} 47. fxg5 {[%emt 0:00:01]} a2 {[%emt 0:00:19]} 48. Rd1 {[%emt 0:00:02]} b4 {[%emt 0:00:10]} 49. g6 {[%emt 0:00:06]} b3 {[%emt 0:00:25] ( -> ...b2)} 50. g7 {[%emt 0:00:20] [#]} Re8 $1 {[%emt 0:00:03]} ({Worse is} 50... b2 51. g8=Q a1=Q 52. Qd5+ Kb6 53. Qd4+ c5 54. Qd8+ Kb5 55. Qb8+ Kc4 56. Qf4+ Kb5 57. Qb8+ (57. Qf1+ c4 $17) 57... Kc4 58. Qf4+ Kb5 59. Qb8+ $11 (59. Qf1+ c4 $17)) 51. Kf7 {[%emt 0:00:16]} Ra8 {[%emt 0:00:06]} 52. Ra1 {[%emt 0:00:13]} b2 {[%emt 0:00:17]} 53. Rxa2 {[%emt 0:00:02]} Rxa2 {[%emt 0:00:01]} 54. g8=Q {[%emt 0:00:02]} b1=Q {[%emt 0:00:01]} 55. Qg5 {[%emt 0:00:20]} Qf1+ {[%emt 0:00:07]} 56. Ke6 {[%emt 0:00:12]} Re2+ {[%emt 0:00:05]} 57. Kd5 {[%emt 0:00:13]} Qd1+ {[%emt 0:00:02] Weighted Error Value: White=0.87/Black=0.10 (very precise)} (57... Qf3+ $142 58. Kc5 Qc3+ 59. Kd5 c6+ 60. Kd6 Qd4+ 61. Qd5 Qxd5#) 0-1

[Event "MCCT Chessable Masters 2022"]
[Site "Online"]
[Date "2022.05.16"]
[Round "8.1"]
[White "Carlsen, Magnus"]
[Black "Shankland, Sam"]
[Result "1-0"]
[ECO "D00"]
[WhiteElo "2864"]
[BlackElo "2718"]
[Annotator "TA"]
[PlyCount "81"]
[EventDate "2022.05.19"]
[EventType "tourn"]
[EventCountry "NET"]
[SourceTitle "playchess.com"]
[Source "ChessBase"]
[SourceQuality "1"]
[TimeControl "900+10"]

{[%evp 9,81,0,0,0,10,14,23,0,0,0,-8,-16,6,0,0,0,16,11,35,48,54,67,33,37,30,11,28,20,39,42,55,46,34,45,50,33,39,23,16,18,20,19,109,20,17,0,111,114,183,121,257,215,484,426,412,301,307,308,392,406,395,401,384,366,345,341,479,458,1370,1306,29972,29969,29956,405]} 1. c3 {[%emt 0:00:00]} d5 {[%emt 0:00:00]} 2. d4 {[%emt 0:00:03]} Nf6 {[%emt 0:00:08]} 3. Bg5 {[%emt 0:00:02]} c5 {[%emt 0:00:51]} 4. e3 {[%emt 0:00:05]} Nc6 {[%emt 0:00:33]} 5. Nd2 {[%emt 0:01:55]} cxd4 {[%emt 0:01:17]} 6. exd4 {[%emt 0:00:02] D00: 1 d4 d5: Unusual lines.} Bf5 {[%emt 0:00:01] Prevents Bd3.} 7. Ngf3 {[%emt 0:00:04]} e6 {[%emt 0:00:29]} 8. Be2 {[%emt 0:00:32] White has an edge.} h6 {[%emt 0:01:09]} 9. Bh4 {[%emt 0:00:03]} Bd6 {[%emt 0:00:09]} 10. O-O {[%emt 0:00:08]} O-O {[%emt 0:00:03]} 11. Re1 {[%emt 0:00:08]} Rb8 {[%emt 0:01:23] [#]} 12. a4 $146 {[%emt 0:00:05][%cal Ba2a4,Ba4a5,Ba5a6][%mdl 32]} ({Predecessor:} 12. Nf1 b5 13. Ne3 Bh7 14. Ng4 Be7 15. Nge5 Nxe5 16. Nxe5 Rb6 17. Bd3 Ne4 18. Bxe7 Qxe7 {0-1 (52) Stepniak,S (2000)-Kubicki,M (2143) Wloclawek 2009}) 12... g5 {[%emt 0:00:20]} 13. Bg3 {[%emt 0:00:02]} Ne4 {[%emt 0:00:04]} 14. Nxe4 {[%emt 0:00:10]} Bxe4 {[%emt 0:00:19]} 15. Bxd6 {[%emt 0:00:07]} Qxd6 {[%emt 0:00:02]} 16. Nd2 {[%emt 0:00:01][%cal Bf3d2,Bd2f1,Bf1g3][%mdl 32]} Bh7 {[%emt 0:01:34]} 17. a5 {[%emt 0:00:01]} Kg7 {[%emt 0:00:03]} 18. Nf1 {[%emt 0:00:51]} Rbe8 {[%emt 0:00:32]} 19. a6 {[%emt 0:00:38]} b6 {[%emt 0:00:25]} 20. Ng3 {[%emt 0:00:05]} Bg6 {[%emt 0:00:56]} 21. Bb5 {[%emt 0:00:05]} f6 {[%emt 0:00:46]} 22. Qg4 {[%emt 0:07:06][%cal Of2f4]} h5 {[%emt 0:01:12]} 23. Nxh5+ {[%emt 0:00:24]} Bxh5 {[%emt 0:00:01]} 24. Qxh5 {[%emt 0:00:00] Threatens to win with Bd3.} Rh8 {[%emt 0:00:03][%mdl 64] Deflection} 25. Qg4 {[%emt 0:00:06] aiming for Qg3.} Qxh2+ {[%emt 0:01:08]} 26. Kf1 {[%emt 0:00:03]} Qd6 {[%emt 0:00:33]} 27. g3 {[%emt 0:00:16]} e5 {[%emt 0:01:28] [#]} (27... Kg6 $11) 28. Kg2 $1 $16 {[%emt 0:00:14]} e4 {[%emt 0:00:33]} (28... Rh6 $16) 29. f3 $18 {[%emt 0:00:24]} e3 {[%emt 0:01:31] A mistake that costs the game.} (29... exf3+ $16 30. Qxf3 Ref8) 30. Rh1 {[%emt 0:00:35]} Kg6 $2 {[%emt 0:00:44]} (30... Rxh1 31. Rxh1 Qe6 32. Qxe6 (32. Qh5 e2 $18) 32... Rxe6) 31. Bd3+ {[%emt 0:01:09][%cal Bb5d3,Bd3g6,Bg6f5][%mdl 32]} Kf7 {[%emt 0:00:01]} 32. Rxh8 {[%emt 0:00:09] Chess con chili.} ({Not} 32. Qf5 Rxh1 33. Rxh1 Ke7 34. Qh7+ Kd8 $18) 32... Rxh8 {[%emt 0:00:02] [#]} 33. Re1 $1 {[%emt 0:00:03]} Qe6 {[%emt 0:01:34] [#]} 34. Bg6+ $1 {[%emt 0:00:10][%mdl 512]} Ke7 {[%emt 0:00:04]} 35. Bf5 {[%emt 0:00:29]} Qf7 {[%emt 0:00:09]} 36. f4 {[%emt 0:00:15]} Kd8 {[%emt 0:00:18]} 37. fxg5 {[%emt 0:00:01]} fxg5 {[%emt 0:00:04]} (37... Qh5 $142 38. Qxh5 (38. Rxe3 $2 {gets mated.} Qh1+ 39. Kf2 Rh2#) 38... Rxh5 39. Rxe3 fxg5) 38. Qxg5+ {[%emt 0:00:09]} Ne7 {[%emt 0:00:03]} (38... Qe7 $142 39. Qf4 Qf6) 39. Rxe3 {[%emt 0:00:09][%cal Oe3e6] Re6! is the strong threat.} Qxf5 {[%emt 0:00:48]} 40. Qxe7+ {[%emt 0:00:01]} Kc8 {[%emt 0:00:08]} 41. Qb7+ {[%emt 0:00:02] Weighted Error Value: White=0.10 (very precise) /Black=0.61} 1-0

[Event "MCCT Chessable Masters 2022"]
[Site "Online"]
[Date "2022.05.16"]
[Round "8.2"]
[White "Vidit, Santosh Gujrathi"]
[Black "Mishra, Abhimanyu"]
[Result "1-0"]
[ECO "D30"]
[WhiteElo "2723"]
[BlackElo "2535"]
[Annotator "TA"]
[PlyCount "137"]
[EventDate "2022.05.19"]
[EventType "tourn"]
[EventCountry "NET"]
[SourceTitle "playchess.com"]
[Source "ChessBase"]
[SourceQuality "1"]
[TimeControl "900+10"]

{[%evp 13,137,23,25,24,13,20,28,15,27,26,34,17,21,22,21,22,31,25,41,33,33,41,32,24,26,34,26,25,33,42,34,39,32,15,7,18,32,36,96,97,120,111,114,100,106,98,133,130,140,144,141,143,144,148,157,150,158,139,137,125,222,226,226,216,199,211,207,215,215,218,513,509,462,320,451,435,505,528,521,524,521,489,478,448,556,552,534,504,438,438,520,525,521,432,488,422,511,497,487,497,507,493,480,473,691,691,672,674,799,796,790,764,1011,974,1390,1366,29976,29977,29977,29978,29980,29981,29976,29977,29977,29979]} 1. d4 {[%emt 0:00:00]} d5 {[%emt 0:00:00]} 2. c4 {[%emt 0:00:01]} c6 {[%emt 0:00:02]} 3. Nf3 {[%emt 0:00:01]} Nf6 {[%emt 0:00:01]} 4. e3 {[%emt 0:00:01]} e6 {[%emt 0:00:01]} 5. Bd3 {[%emt 0:00:01]} dxc4 {[%emt 0:00:01]} 6. Bxc4 {[%emt 0:00:00]} Nbd7 {[%emt 0:00:01]} 7. O-O {[%emt 0:00:03]} Bd6 {[%emt 0:00:01]} 8. Qc2 {[%emt 0:00:04] D30: Queen's Gambit Declined: Systems without Nc3.} O-O {[%emt 0:00:02]} 9. e4 $1 {[%emt 0:00:01][%mdl 4] is now more promising than 9.Nc3.} e5 $1 {[%emt 0:00:02]} 10. Be3 {[%emt 0:00:02] White has an edge.} Ng4 {[%emt 0:00:09]} 11. Bg5 {[%emt 0:00:03][%cal Be3g5,Bg5h4,Bh4g3][%mdl 32]} Qc7 {[%emt 0:00:01] Threatens to win with ...exd4.} 12. h3 {[%emt 0:00:12]} h6 {[%emt 0:00:01]} 13. Bh4 {[%emt 0:00:03]} Ngf6 {[%emt 0:00:06][%cal Bg4f6,Bf6h5,Bh5f4][%mdl 32]} 14. Nc3 {[%emt 0:00:02]} Nh5 {[%emt 0:00:12]} 15. Rad1 {[%emt 0:00:06]} b5 {[%emt 0:00:02]} 16. Be2 {[%emt 0:00:53]} Nf4 {[%emt 0:00:50]} 17. Bg3 {[%emt 0:01:57] Bxf4 is the strong threat.} exd4 {[%emt 0:00:04]} 18. Nxd4 {[%emt 0:00:21][%cal Oe2b5] And now Bxb5! would win.} b4 {[%emt 0:02:05]} 19. Nf5 {[%emt 0:03:25] [#]} Nxh3+ $146 {[%emt 0:01:15]} ({Predecessor:} 19... Be5 20. Na4 Nxe2+ 21. Qxe2 Bxg3 22. Nxg3 c5 23. Qc4 Qa5 24. Qc2 c4 25. Rd5 Qc7 {½-½ (75) Zajontz,R (2500)-Mendl,M (2537) ICCF email 2020}) 20. gxh3 {[%emt 0:00:13]} Bxg3 {[%emt 0:00:01]} 21. Nxg3 {[%emt 0:01:28][%cal Oc3d5] Hoping for Nd5!} bxc3 {[%emt 0:00:03]} 22. Qxc3 {[%emt 0:00:01]} Qe5 {[%emt 0:01:47]} (22... Ne5 $2 23. f4 $18) 23. Qxe5 {[%emt 0:01:29]} Nxe5 {[%emt 0:00:00]} 24. f4 {[%emt 0:00:01]} Ng6 {[%emt 0:04:33]} (24... Bxh3 {is interesting.} 25. fxe5 Bxf1 26. Kxf1 Rae8) 25. Kh2 {[%emt 0:00:05]} Ne7 {[%emt 0:00:45]} (25... a5 $14) 26. f5 $16 {[%emt 0:00:29] White now steadily converts the win.} Rb8 {[%emt 0:00:47]} 27. b3 {[%emt 0:00:04]} c5 {[%emt 0:01:21]} 28. Bc4 {[%emt 0:04:21]} Nc6 {[%emt 0:01:00]} 29. Rd5 {[%emt 0:00:03] Against Ne5. White is more active.} Rd8 {[%emt 0:01:00]} 30. Rxd8+ {[%emt 0:01:05]} Nxd8 {[%emt 0:00:02] [#]} 31. Rd1 $1 {[%emt 0:01:02]} Nc6 {[%emt 0:00:47]} 32. Rd5 {[%emt 0:00:01]} Kf8 {[%emt 0:01:22]} 33. Rxc5 {[%emt 0:00:04]} Rb6 {[%emt 0:00:18]} 34. Nh5 {[%emt 0:00:43]} Ba6 {[%emt 0:00:45]} 35. Bd5 {[%emt 0:00:59]} Nb4 {[%emt 0:00:44]} 36. Nf4 {[%emt 0:00:01]} Bb7 {[%emt 0:00:35]} (36... Rb8 $16 {was necessary.}) 37. Bxb7 $18 {[%emt 0:00:23]} Rxb7 {[%emt 0:00:00][%mdl 4096] Endgame KRN-KRN} 38. a3 {[%emt 0:00:03][%cal Ba2a3,Ba3a4][%mdl 32]} Na6 {[%emt 0:00:04]} 39. Rc6 {[%emt 0:00:31]} Nc7 {[%emt 0:00:30] [#]} 40. b4 $1 {[%emt 0:00:08]} Nb5 {[%emt 0:00:15]} 41. Nd5 {[%emt 0:00:16][%cal Rc6c8] Inhibits Re7.} f6 $2 {[%emt 0:00:11]} (41... Ke8 {is a better defense.} 42. a4 Nd4) 42. a4 {[%emt 0:00:11]} Nd4 {[%emt 0:00:02]} 43. Rc8+ {[%emt 0:00:44]} Kf7 {[%emt 0:00:01]} 44. Kg3 {[%emt 0:00:09]} g6 {[%emt 0:00:18]} 45. Rc4 {[%emt 0:00:04]} Nb3 {[%emt 0:00:08]} 46. fxg6+ {[%emt 0:00:28]} Kxg6 {[%emt 0:00:02]} 47. Rc6 {[%emt 0:00:01]} Kg7 {[%emt 0:00:25]} 48. b5 {[%emt 0:00:23]} Rf7 {[%emt 0:00:11]} 49. Kf4 {[%emt 0:00:12]} Nd4 {[%emt 0:00:04]} 50. Rd6 {[%emt 0:00:04]} Nb3 {[%emt 0:00:13]} 51. Ke3 {[%emt 0:00:08]} Rb7 {[%emt 0:00:15]} 52. Rc6 {[%emt 0:00:16] Inhibits Nc5.} Rf7 {[%emt 0:00:11]} 53. Rc3 {[%emt 0:00:11]} Na5 {[%emt 0:00:05]} 54. Kd4 {[%emt 0:00:02]} Rd7 {[%emt 0:00:07]} 55. Rg3+ {[%emt 0:00:11]} Kf7 {[%emt 0:00:09]} 56. Rf3 {[%emt 0:00:01]} Kg7 {[%emt 0:00:10]} 57. Kc5 {[%emt 0:00:06]} Nb7+ {[%emt 0:00:12]} 58. Kb4 {[%emt 0:00:03]} f5 {[%emt 0:00:15]} (58... Rf7 $142 59. a5 Nd6) 59. Rxf5 {[%emt 0:00:05]} Nd6 {[%emt 0:00:01]} 60. Rf4 {[%emt 0:00:11]} Rd8 {[%emt 0:00:16]} 61. Nc7 {[%emt 0:00:13] Against Re8. Strongly threatening Ne6+.} Rc8 {[%emt 0:00:09]} 62. e5 {[%emt 0:00:04][%cal Be4e5,Be5e6,Be6e7][%mdl 32]} Nf7 {[%emt 0:00:07]} 63. e6 {[%emt 0:00:16]} Nd6 {[%emt 0:00:05]} 64. Rd4 {[%emt 0:00:18]} Rxc7 {[%emt 0:00:08]} 65. Rxd6 {[%emt 0:00:01] White mates.} Kf6 {[%emt 0:00:02]} 66. Rd7 {[%emt 0:00:08]} Rc1 {[%emt 0:00:13]} 67. e7 {[%emt 0:00:01]} Kf7 {[%emt 0:00:06]} 68. Rxa7 {[%emt 0:00:02]} Rh1 {[%emt 0:00:21]} 69. b6 {[%emt 0:00:02] Weighted Error Value: White=0.07 (flawless) /Black=0.23 (precise)} 1-0

[Event "MCCT Chessable Masters 2022"]
[Site "Online"]
[Date "2022.05.16"]
[Round "8.3"]
[White "Wei, Yi"]
[Black "Van Foreest, Jorden"]
[Result "1-0"]
[ECO "D27"]
[WhiteElo "2727"]
[BlackElo "2715"]
[Annotator "TA"]
[PlyCount "109"]
[EventDate "2022.05.19"]
[EventType "tourn"]
[EventCountry "NET"]
[SourceTitle "playchess.com"]
[Source "ChessBase"]
[SourceQuality "1"]
[TimeControl "900+10"]

{[%evp 20,109,34,15,4,0,22,10,22,0,0,0,13,0,16,6,18,0,55,31,58,59,57,51,56,57,88,74,88,79,80,71,74,63,101,84,79,19,42,56,46,43,95,92,92,67,105,102,132,132,119,109,152,152,152,152,152,152,152,152,153,152,152,152,181,181,325,0,153,0,218,219,388,382,404,391,584,584,638,647,638,621,805,588,719,637,1097,1102,997,997,881,856]} 1. d4 {[%emt 0:00:00]} d5 {[%emt 0:00:00]} 2. c4 {[%emt 0:00:09]} dxc4 {[%emt 0:00:04]} 3. Nf3 {[%emt 0:00:19]} Nf6 {[%emt 0:00:03]} 4. e3 {[%emt 0:00:01]} e6 {[%emt 0:00:02]} 5. Bxc4 {[%emt 0:00:01]} c5 {[%emt 0:00:03]} 6. O-O {[%emt 0:00:02]} a6 {[%emt 0:00:02]} 7. Nbd2 {[%emt 0:00:49]} cxd4 {[%emt 0:00:05]} 8. Nxd4 {[%emt 0:00:02]} Be7 {[%emt 0:00:17]} 9. b3 {[%emt 0:00:31]} Bd7 {[%emt 0:00:28]} 10. Bb2 {[%emt 0:00:49]} Nc6 {[%emt 0:00:09]} 11. N2f3 {[%emt 0:00:51]} O-O {[%emt 0:00:28] [#] D27: Queen's Gambit Accepted: Classical main line: 7 e4!? and 7 a4.} 12. Qb1 $1 $146 {[%emt 0:00:37][%mdl 8] A top novelty.} ({Predecessor:} 12. Rc1 Rc8 13. Qe2 Nxd4 14. Bxd4 Bc6 15. Rfd1 Ba3 16. Ra1 Qe7 17. Ne5 Be4 18. f3 Bd5 19. e4 {0-1 (32) Nihal,S (2620)-Vachier Lagrave,M (2784) Chess.com INT 2020}) 12... Nxd4 {[%emt 0:00:12]} 13. Bxd4 {[%emt 0:00:04]} Bb5 {[%emt 0:01:44] The position is equal.} 14. Bxb5 {[%emt 0:01:01]} axb5 {[%emt 0:00:02]} 15. Rd1 {[%emt 0:00:13]} Qe8 {[%emt 0:01:11]} 16. Qb2 {[%emt 0:01:50]} Qc6 {[%emt 0:00:42]} 17. Ne5 {[%emt 0:01:30]} Qa6 {[%emt 0:00:05]} 18. a4 {[%emt 0:00:13][%cal Ba2a4,Ba4a5][%mdl 32]} Rfc8 {[%emt 0:00:56]} (18... bxa4 $11 19. Rxa4 Qb5) 19. a5 $14 {[%emt 0:01:07]} Qd6 {[%emt 0:01:01]} 20. Qe2 {[%emt 0:02:39]} Qd5 {[%emt 0:04:30]} 21. Rab1 {[%emt 0:01:45][%cal Oe5g6]} b4 {[%emt 0:01:45] [#]} 22. Nxf7 $1 {[%emt 0:00:01]} Qxa5 {[%emt 0:00:09]} (22... Qe4 23. Ne5) 23. Ne5 {[%emt 0:00:32] White is more active.} Qa6 {[%emt 0:00:15]} 24. Qf3 {[%emt 0:00:19]} Rf8 {[%emt 0:00:21]} 25. Ra1 {[%emt 0:01:49]} Qb5 {[%emt 0:00:03]} 26. Qh3 {[%emt 0:00:13]} Qd5 {[%emt 0:00:26]} 27. Rab1 {[%emt 0:00:04][%cal Oe5g6]} Rfd8 {[%emt 0:00:53]} 28. Nd3 {[%emt 0:01:52]} (28. Rd3 $16 Qd6 29. Rbd1) 28... Qf5 {[%emt 0:00:20]} 29. Qxf5 {[%emt 0:00:04]} exf5 {[%emt 0:00:00]} 30. Bxf6 {[%emt 0:00:02]} gxf6 {[%emt 0:00:34]} (30... Bxf6 $14 31. Nxb4 Rxd1+ 32. Rxd1 Ra3) 31. Kf1 $16 {[%emt 0:00:13]} Kf7 {[%emt 0:00:28]} 32. Ke2 {[%emt 0:00:09]} Bd6 {[%emt 0:00:12]} 33. Rd2 {[%emt 0:00:18]} Ke6 {[%emt 0:00:40]} 34. g3 {[%emt 0:00:03]} Rdc8 {[%emt 0:00:07]} 35. Kf3 {[%emt 0:00:06]} Rc3 {[%emt 0:00:05]} 36. Nc1 {[%emt 0:00:15]} Be5 {[%emt 0:00:14] [#]} 37. Ne2 $1 {[%emt 0:00:03]} b5 {[%emt 0:00:35]} 38. Nd4+ {[%emt 0:00:11]} Bxd4 {[%emt 0:00:23]} 39. Rxd4 {[%emt 0:00:00][%mdl 4096] Endgame KRR-KRR} Ra2 {[%emt 0:00:07]} 40. Rxb4 {[%emt 0:00:02]} Rcc2 {[%emt 0:00:01][%csl Ga2][%cal Rc2f2]} 41. Rf1 {[%emt 0:00:00]} Rc5 {[%emt 0:00:37]} 42. Rh4 {[%emt 0:00:02]} Rc3 {[%emt 0:00:02]} (42... Rc7 {was worth a try.} 43. Rb4 Rc5) 43. Rb4 $2 {[%emt 0:00:07]} (43. Rxh7 $18 {Strongly threatening b4.} Rxb3 44. h4) 43... Rb2 $2 {[%emt 0:00:29]} ({Better is} 43... Rc5 $11) 44. Rh4 $2 {[%emt 0:00:55]} ({White should play} 44. Rxb5 $16 {And now Rb7 would win.} Rbxb3 45. Ra5) 44... Rbxb3 $2 {[%emt 0:00:13]} (44... Ra2 $1 $11 {and Black has nothing to worry.}) 45. Rxh7 $18 {[%emt 0:00:04]} Rc2 $2 {[%emt 0:01:21]} (45... Rb2 46. h4 b4) 46. Rb7 {[%emt 0:00:16]} b4 {[%emt 0:00:03]} 47. h4 {[%emt 0:00:05][%cal Bh2h4,Bh4h5,Bh5h6,Bh6h7][%mdl 32]} Rbb2 {[%emt 0:00:02]} (47... Rbc3 $142 48. Rxb4 Kf7) 48. h5 {[%emt 0:00:11] White is clearly winning.} b3 {[%emt 0:00:06]} 49. h6 {[%emt 0:00:10] Threatens to win with h7.} Rc8 {[%emt 0:00:02]} 50. h7 {[%emt 0:00:18] aiming for Rh1.} Rh8 {[%emt 0:00:01]} 51. Rh1 {[%emt 0:00:21]} Rd2 {[%emt 0:00:21]} 52. Rxb3 {[%emt 0:00:07]} Rd7 {[%emt 0:00:01]} 53. Rb6+ {[%emt 0:00:04]} Ke5 {[%emt 0:00:01]} 54. Rb5+ {[%emt 0:00:12]} Ke6 {[%emt 0:00:18]} 55. Kf4 {[%emt 0:00:13] Weighted Error Value: White=0.22 (precise) /Black=0.45} 1-0